[Event "Chinese Team-ch Men 2025"]
[Site "Zhang Jiakou Hebei"]
[Date "2025.05.01"]
[Round "7.17"]
[White "Wang, Yiye"]
[Black "Chen, Hongsen"]
[Result "1-0"]
[Annotator "ChessBase"]
[ECO "D34"]
[WhiteElo "2446"]
[BlackElo "2402"]
[PlyCount "143"]
[EventDate "2025.04.26"]
[EventType "team-tourn"]
[EventCountry "CHN"]
[SourceTitle "playchess.com"]
[Source "ChessBase"]
[SourceQuality "1"]
[TimeControl "5400+30"]

1. c4 {[%emt 0:00:08]} e6 {[%emt 0:01:29]} 2. g3 {[%emt 0:05:18]} d5 {[%emt 0:02:10]} 3. Bg2 {[%emt 0:00:35]} Nf6 {[%emt 0:02:30]} 4. Nf3 {[%emt 0:00:10]} c5 {[%emt 0:08:06]} 5. cxd5 {[%emt 0:02:31]} exd5 {[%emt 0:00:07]} 6. d4 {[%emt 0:00:11]} Nc6 {[%emt 0:00:10]} 7. Nc3 {[%emt 0:02:01]} Be7 {[%emt 0:00:10]} 8. O-O {[%emt 0:01:28]} O-O {[%emt 0:00:06]} 9. dxc5 {[%emt 0:03:07]} Bxc5 {[%emt 0:00:25]} 10. Na4 {[%emt 0:00:27]} Be7 {[%emt 0:00:43]} 11. Nd4 {[%emt 0:01:14]} Bg4 {[%emt 0:01:08]} 12. Be3 {[%emt 0:02:16]} Qa5 {[%emt 0:09:02]} 13. Nc3 {[%emt 0:13:13]} Rfd8 {[%emt 0:03:22]} 14. h3 {[%emt 0:04:05]} Bh5 {[%emt 0:01:42]} 15. Rc1 {[%emt 0:18:30]} Bg6 {[%emt 0:17:53]} 16. Qb3 {[%emt 0:07:42]} Qb4 {[%emt 0:15:28]} 17. Qxb4 {[%emt 0:05:55]} Bxb4 {[%emt 0:03:37]} 18. Ncb5 {[%emt 0:00:14]} Ne7 {[%emt 0:13:09]} 19. a3 {[%emt 0:07:37]} Ba5 {[%emt 0:02:42]} 20. Nb3 {[%emt 0:00:06]} Bb6 {[%emt 0:00:15]} 21. Bxb6 {[%emt 0:00:06]} axb6 {[%emt 0:00:04]} 22. Rc7 {[%emt 0:00:06]} Rd7 {[%emt 0:01:41]} 23. Rxd7 {[%emt 0:00:38]} Nxd7 {[%emt 0:00:01]} 24. Rc1 {[%emt 0:00:06]} Kf8 {[%emt 0:03:18]} 25. Rc7 {[%emt 0:01:46]} Ne5 {[%emt 0:00:26]} 26. Rxb7 {[%emt 0:07:33]} Nc4 {[%emt 0:00:11]} 27. N3d4 {[%emt 0:00:39]} Nxb2 {[%emt 0:03:08]} 28. Rxb6 {[%emt 0:06:00]} Nc4 {[%emt 0:00:05]} 29. Rb7 {[%emt 0:00:05]} Be4 {[%emt 0:01:23]} 30. a4 {[%emt 0:01:42]} g6 {[%emt 0:03:17]} 31. Nc3 {[%emt 0:02:57]} Bxg2 {[%emt 0:03:12]} 32. Kxg2 {[%emt 0:00:06]} Rc8 {[%emt 0:00:51]} 33. Ncb5 {[%emt 0:00:16]} Ra8 {[%emt 0:01:12]} 34. Nc3 {[%emt 0:04:46]} Rc8 {[%emt 0:00:05]} 35. Ndb5 {[%emt 0:00:06]} Na5 {[%emt 0:01:51]} 36. Ra7 {[%emt 0:02:19]} Nb3 {[%emt 0:01:10]} 37. Rc7 {[%emt 0:01:10]} Rxc7 {[%emt 0:01:22]} 38. Nxc7 {[%emt 0:00:02]} d4 {[%emt 0:00:07]} 39. N3d5 {[%emt 0:01:38]} Nc6 {[%emt 0:00:29]} 40. Na6 {[%emt 0:00:55]} Ne5 {[%emt 0:01:05]} 41. Nab4 {[%emt 0:00:39]} f5 {[%emt 0:01:01]} 42. Nd3 {[%emt 0:00:29]} Nc4 {[%emt 0:00:42]} 43. Kf3 {[%emt 0:00:31]} g5 {[%emt 0:00:13]} 44. g4 {[%emt 0:00:32]} Nbd2+ {[%emt 0:00:20]} 45. Kg2 {[%emt 0:00:04]} f4 {[%emt 0:00:12]} 46. Nc5 {[%emt 0:00:57]} Kf7 {[%emt 0:00:21]} 47. h4 {[%emt 0:00:24]} h6 {[%emt 0:00:29]} 48. h5 {[%emt 0:00:05]} Nb1 {[%emt 0:00:49]} 49. Ne4 {[%emt 0:00:53]} Ke6 {[%emt 0:00:11]} 50. Nb4 {[%emt 0:00:39]} Nc3 {[%emt 0:01:21]} 51. Nxc3 {[%emt 0:00:19]} dxc3 {[%emt 0:00:01]} 52. Kf1 {[%emt 0:00:06]} Kd6 {[%emt 0:00:58]} 53. Ke1 {[%emt 0:00:54]} Ne5 {[%emt 0:00:10]} 54. f3 {[%emt 0:00:40]} Kc5 {[%emt 0:00:29]} 55. Nc2 {[%emt 0:00:25]} Kc4 {[%emt 0:00:48]} 56. Kd1 {[%emt 0:00:09]} Nc6 {[%emt 0:00:21]} 57. Ne1 {[%emt 0:00:40]} Nd4 {[%emt 0:00:49]} 58. Nd3 {[%emt 0:00:19]} Nc6 {[%emt 0:00:27]} 59. Kc1 {[%emt 0:00:56]} Kb3 {[%emt 0:00:27]} 60. Nc5+ {[%emt 0:00:24]} Kb4 {[%emt 0:00:14]} 61. Nd3+ {[%emt 0:00:31]} Kb3 {[%emt 0:00:07]} 62. Nc5+ {[%emt 0:00:21]} Kb4 {[%emt 0:00:04]} 63. Ne4 {[%emt 0:00:44]} Nd4 {[%emt 0:00:48]} 64. a5 {[%emt 0:00:13]} Kxa5 {[%emt 0:01:20]} 65. Nxc3 {[%emt 0:00:07]} Kb4 {[%emt 0:00:06]} 66. Kd2 {[%emt 0:01:00]} Nb3+ {[%emt 0:00:44]} 67. Kc2 {[%emt 0:00:39]} Kc4 {[%emt 0:00:09]} 68. Ne4 {[%emt 0:00:13]} Nd4+ {[%emt 0:00:28]} 69. Kd2 {[%emt 0:00:05]} Nb5 {[%emt 0:01:05]} 70. e3 {[%emt 0:00:35]} Kd5 {[%emt 0:00:33]} 71. exf4 {[%emt 0:00:53]} gxf4 {[%emt 0:00:21]} 72. Nc3+ {[%emt 0:00:25]} 1-0

[Event "Chinese Team-ch Men 2025"]
[Site "Zhang Jiakou Hebei"]
[Date "2025.05.01"]
[Round "7.18"]
[White "Jin, Hongtao"]
[Black "Hou, Yifan b"]
[Result "1-0"]
[Annotator "ChessBase"]
[ECO "B42"]
[WhiteElo "2343"]
[BlackElo "2313"]
[PlyCount "59"]
[EventDate "2025.04.26"]
[EventType "team-tourn"]
[EventCountry "CHN"]
[SourceTitle "playchess.com"]
[Source "ChessBase"]
[SourceQuality "1"]
[TimeControl "5400+30"]

1. e4 {[%emt 0:00:07]} c5 {[%emt 0:00:14]} 2. Nf3 {[%emt 0:00:06]} e6 {[%emt 0:00:07]} 3. d4 {[%emt 0:00:28]} cxd4 {[%emt 0:00:07]} 4. Nxd4 {[%emt 0:00:09]} a6 {[%emt 0:00:11]} 5. Bd3 {[%emt 0:00:31]} Bc5 {[%emt 0:00:28]} 6. Nb3 {[%emt 0:00:12]} Ba7 {[%emt 0:00:14]} 7. Bf4 {[%emt 0:00:14]} d6 {[%emt 0:01:19]} 8. Nc3 {[%emt 0:01:42]} e5 {[%emt 0:09:30]} 9. Bg3 {[%emt 0:02:06]} h5 {[%emt 0:04:44]} 10. h3 {[%emt 0:00:43]} Be6 {[%emt 0:02:30]} 11. Qd2 {[%emt 0:05:17]} Nc6 {[%emt 0:07:59]} 12. f4 {[%emt 0:03:47]} h4 {[%emt 0:09:55]} 13. Bh2 {[%emt 0:00:34]} Nf6 {[%emt 0:00:59]} 14. O-O-O {[%emt 0:02:48]} Qe7 {[%emt 0:08:09]} 15. Be2 {[%emt 0:08:25]} Bd4 {[%emt 0:09:01]} 16. Nxd4 {[%emt 0:11:30]} exd4 {[%emt 0:00:23]} 17. Nd5 {[%emt 0:00:10]} Nxd5 {[%emt 0:13:16]} 18. exd5 {[%emt 0:00:07]} Bxd5 {[%emt 0:00:02]} 19. Rhe1 {[%emt 0:00:11]} Qf6 {[%emt 0:04:43]} 20. Bf3+ {[%emt 0:18:36]} Be6 {[%emt 0:00:08]} 21. Bg1 {[%emt 0:00:18]} d3 {[%emt 0:05:30]} 22. Qxd3 {[%emt 0:00:40]} Qxf4+ {[%emt 0:00:56]} 23. Be3 {[%emt 0:02:49]} Qa4 {[%emt 0:01:02]} 24. Qxd6 {[%emt 0:09:20]} Nb4 {[%emt 0:01:53]} 25. Rd2 {[%emt 0:00:51]} Qxa2 {[%emt 0:06:25]} 26. Kd1 {[%emt 0:00:06]} Nxc2 {[%emt 0:00:10]} 27. Bc6+ {[%emt 0:02:31]} bxc6 {[%emt 0:05:56]} 28. Qxc6+ {[%emt 0:00:06]} Ke7 {[%emt 0:00:28]} 29. Bg5+ {[%emt 0:00:31]} f6 {[%emt 0:00:10]} 30. Rd7+ {[%emt 0:00:12]} 1-0

[Event "Chinese Team-ch Men 2025"]
[Site "Zhang Jiakou Hebei"]
[Date "2025.05.01"]
[Round "7.19"]
[White "Fan, Huifeng"]
[Black "Yang, ZiLong"]
[Result "0-1"]
[Annotator "ChessBase"]
[ECO "B22"]
[WhiteElo "2178"]
[BlackElo "2337"]
[PlyCount "174"]
[EventDate "2025.04.26"]
[EventType "team-tourn"]
[EventCountry "CHN"]
[SourceTitle "playchess.com"]
[Source "ChessBase"]
[SourceQuality "1"]
[TimeControl "5400+30"]

1. e4 {[%emt 0:00:13]} c5 {[%emt 0:00:52]} 2. Nf3 {[%emt 0:00:15]} e6 {[%emt 0:00:13]} 3. c3 {[%emt 0:00:06]} d5 {[%emt 0:00:29]} 4. exd5 {[%emt 0:00:06]} Qxd5 {[%emt 0:00:05]} 5. d4 {[%emt 0:00:25]} Nf6 {[%emt 0:00:22]} 6. Na3 {[%emt 0:00:20]} Nc6 {[%emt 0:00:06]} 7. Be3 {[%emt 0:00:10]} cxd4 {[%emt 0:00:14]} 8. Nb5 {[%emt 0:00:20]} Qd8 {[%emt 0:00:04]} 9. Nbxd4 {[%emt 0:00:15]} Nd5 {[%emt 0:00:04]} 10. Nxc6 {[%emt 0:01:45]} bxc6 {[%emt 0:00:04]} 11. Bd2 {[%emt 0:00:08]} Bc5 {[%emt 0:02:50]} 12. Bd3 {[%emt 0:13:12]} O-O {[%emt 0:03:24]} 13. O-O {[%emt 0:03:31]} a5 {[%emt 0:03:31]} 14. Qe2 {[%emt 0:03:50]} Qc7 {[%emt 0:17:40]} 15. Ng5 {[%emt 0:29:52]} h6 {[%emt 0:07:16]} 16. c4 {[%emt 0:05:53]} Nf6 {[%emt 0:13:09]} 17. Nf3 {[%emt 0:00:25]} e5 {[%emt 0:02:08]} 18. Bc3 {[%emt 0:02:43]} Re8 {[%emt 0:03:48]} 19. Bxe5 {[%emt 0:04:25]} Bd6 {[%emt 0:00:30]} 20. Bxd6 {[%emt 0:00:46]} Qxd6 {[%emt 0:00:05]} 21. Qd2 {[%emt 0:00:22]} Qc5 {[%emt 0:01:26]} 22. Rfe1 {[%emt 0:10:58]} Bg4 {[%emt 0:00:39]} 23. Re3 {[%emt 0:09:18]} Bxf3 {[%emt 0:18:47]} 24. Rxf3 {[%emt 0:00:10]} Rad8 {[%emt 0:00:45]} 25. Re1 {[%emt 0:02:09]} Re5 {[%emt 0:07:42]} 26. h3 {[%emt 0:03:14]} Rd4 {[%emt 0:06:09]} 27. Rxe5 {[%emt 0:00:43]} Qxe5 {[%emt 0:00:02]} 28. Re3 {[%emt 0:00:30]} Qd6 {[%emt 0:01:29]} 29. Qe2 {[%emt 0:01:14]} g6 {[%emt 0:00:25]} 30. Qc2 {[%emt 0:01:58]} c5 {[%emt 0:00:14]} 31. Be2 {[%emt 0:04:17]} Rd2 {[%emt 0:01:10]} 32. Qc3 {[%emt 0:00:05]} Qd4 {[%emt 0:00:06]} 33. Qxa5 {[%emt 0:00:53]} Qxb2 {[%emt 0:00:29]} 34. Bf3 {[%emt 0:01:13]} Qa1+ {[%emt 0:04:52]} 35. Kh2 {[%emt 0:00:09]} Qd4 {[%emt 0:00:02]} 36. Qc3 {[%emt 0:01:34]} Qxc3 {[%emt 0:04:13]} 37. Rxc3 {[%emt 0:00:05]} Rxa2 {[%emt 0:00:10]} 38. Kg3 {[%emt 0:01:21]} Kf8 {[%emt 0:00:11]} 39. Rd3 {[%emt 0:00:26]} Rc2 {[%emt 0:01:19]} 40. Bd5 {[%emt 0:00:05]} Nxd5 {[%emt 0:00:16]} 41. cxd5 {[%emt 0:00:06]} Ke7 {[%emt 0:00:01]} 42. d6+ {[%emt 0:01:21]} Kd7 {[%emt 0:00:02]} 43. Rf3 {[%emt 0:00:05]} f5 {[%emt 0:01:14]} 44. Ra3 {[%emt 0:00:17]} Rd2 {[%emt 0:00:45]} 45. Ra7+ {[%emt 0:01:13]} Ke6 {[%emt 0:00:11]} 46. Rg7 {[%emt 0:00:22]} g5 {[%emt 0:02:30]} 47. Rg6+ {[%emt 0:00:25]} Ke5 {[%emt 0:00:03]} 48. Rxh6 {[%emt 0:00:28]} Rd3+ {[%emt 0:00:05]} 49. f3 {[%emt 0:00:09]} c4 {[%emt 0:01:50]} 50. Rh8 {[%emt 0:01:07]} Rxd6 {[%emt 0:00:17]} 51. Rc8 {[%emt 0:00:09]} Rd4 {[%emt 0:00:26]} 52. Kf2 {[%emt 0:00:27]} Rd2+ {[%emt 0:01:02]} 53. Ke3 {[%emt 0:00:19]} Rxg2 {[%emt 0:00:19]} 54. Rxc4 {[%emt 0:00:21]} f4+ {[%emt 0:00:01]} 55. Kd3 {[%emt 0:00:08]} Rf2 {[%emt 0:00:37]} 56. Rc5+ {[%emt 0:00:05]} Kf6 {[%emt 0:00:02]} 57. Rc6+ {[%emt 0:00:23]} Kf5 {[%emt 0:00:02]} 58. Rc5+ {[%emt 0:00:16]} Kg6 {[%emt 0:00:04]} 59. Rc6+ {[%emt 0:00:11]} Kh5 {[%emt 0:00:47]} 60. Ke4 {[%emt 0:00:08]} Re2+ {[%emt 0:01:33]} 61. Kf5 {[%emt 0:00:04]} Re8 {[%emt 0:00:12]} 62. Rc7 {[%emt 0:00:51]} Rf8+ {[%emt 0:00:11]} 63. Ke4 {[%emt 0:00:16]} Re8+ {[%emt 0:00:31]} 64. Kf5 {[%emt 0:00:06]} Rf8+ {[%emt 0:00:01]} 65. Ke4 {[%emt 0:00:06]} Rh8 {[%emt 0:01:05]} 66. Rc1 {[%emt 0:01:14]} Ra8 {[%emt 0:01:14]} 67. Rc7 {[%emt 0:03:07]} Ra4+ {[%emt 0:00:03]} 68. Kf5 {[%emt 0:00:07]} Ra5+ {[%emt 0:00:02]} 69. Ke4 {[%emt 0:00:16]} Kh4 {[%emt 0:00:05]} 70. Rh7+ {[%emt 0:00:23]} Kg3 {[%emt 0:00:07]} 71. Rh5 {[%emt 0:00:57]} Ra4+ {[%emt 0:01:01]} 72. Kd3 {[%emt 0:00:42]} Ra5 {[%emt 0:02:08]} 73. Ke4 {[%emt 0:00:05]} Ra4+ {[%emt 0:00:03]} 74. Kd3 {[%emt 0:00:06]} Kxf3 {[%emt 0:00:01]} 75. Rxg5 {[%emt 0:00:06]} Ra8 {[%emt 0:00:52]} 76. Rd5 {[%emt 0:01:13]} Rh8 {[%emt 0:00:10]} 77. Kd2 {[%emt 0:00:17]} Rxh3 {[%emt 0:00:04]} 78. Ke1 {[%emt 0:00:45]} Rh1+ {[%emt 0:00:02]} 79. Kd2 {[%emt 0:00:13]} Kf2 {[%emt 0:00:13]} 80. Rf5 {[%emt 0:00:36]} f3 {[%emt 0:00:02]} 81. Kd3 {[%emt 0:00:08]} Rh8 {[%emt 0:00:15]} 82. Ke4 {[%emt 0:00:18]} Re8+ {[%emt 0:00:05]} 83. Kf4 {[%emt 0:00:18]} Ke2 {[%emt 0:00:17]} 84. Kg3 {[%emt 0:00:34]} Rg8+ {[%emt 0:00:09]} 85. Kh3 {[%emt 0:00:12]} f2 {[%emt 0:00:10]} 86. Re5+ {[%emt 0:00:04]} Kf1 {[%emt 0:01:06]} 87. Rf5 {[%emt 0:00:38]} Kg1 {[%emt 0:00:06]} 0-1

[Event "Chinese Team-ch Men 2025"]
[Site "Zhang Jiakou Hebei"]
[Date "2025.05.01"]
[Round "7.20"]
[White "Yu, Zechen"]
[Black "Qu, Yanqiao"]
[Result "1-0"]
[Annotator "ChessBase"]
[ECO "C43"]
[WhiteElo "2116"]
[BlackElo "1969"]
[PlyCount "103"]
[EventDate "2025.04.26"]
[EventType "team-tourn"]
[EventCountry "CHN"]
[SourceTitle "playchess.com"]
[Source "ChessBase"]
[SourceQuality "1"]
[TimeControl "5400+30"]

1. e4 {[%emt 0:00:02]} e5 {[%emt 0:00:43]} 2. Nf3 {[%emt 0:00:05]} Nf6 {[%emt 0:00:07]} 3. d4 {[%emt 0:00:05]} Nxe4 {[%emt 0:00:10]} 4. Bd3 {[%emt 0:00:04]} d5 {[%emt 0:00:09]} 5. Nxe5 {[%emt 0:00:05]} Nd7 {[%emt 0:00:11]} 6. Nxd7 {[%emt 0:00:04]} Bxd7 {[%emt 0:00:11]} 7. O-O {[%emt 0:00:20]} Bd6 {[%emt 0:00:16]} 8. Nc3 {[%emt 0:00:04]} Nxc3 {[%emt 0:00:25]} 9. bxc3 {[%emt 0:00:05]} O-O {[%emt 0:00:19]} 10. Qh5 {[%emt 0:00:03]} f5 {[%emt 0:01:37]} 11. Re1 {[%emt 0:00:05]} Qf6 {[%emt 0:06:05]} 12. Bg5 {[%emt 0:06:33]} Qf7 {[%emt 0:03:20]} 13. Qxf7+ {[%emt 0:26:38]} Kxf7 {[%emt 0:11:38]} 14. c4 {[%emt 0:05:27]} dxc4 {[%emt 0:05:51]} 15. Bxc4+ {[%emt 0:00:20]} Kg6 {[%emt 0:00:01]} 16. Be7 {[%emt 0:06:36]} Rfe8 {[%emt 0:01:12]} 17. Bxd6 {[%emt 0:00:35]} cxd6 {[%emt 0:00:02]} 18. Bd5 {[%emt 0:10:31]} Bc6 {[%emt 0:06:08]} 19. Be6 {[%emt 0:02:43]} Kf6 {[%emt 0:31:57]} 20. d5 {[%emt 0:04:26]} Ba4 {[%emt 0:03:52]} 21. c4 {[%emt 0:20:39]} Re7 {[%emt 0:02:27]} 22. Rac1 {[%emt 0:03:43]} b6 {[%emt 0:02:20]} 23. Re3 {[%emt 0:04:20]} g6 {[%emt 0:00:30]} 24. Kf1 {[%emt 0:03:19]} Rc7 {[%emt 0:01:19]} 25. Ke2 {[%emt 0:00:55]} Re8 {[%emt 0:02:52]} 26. Kd3 {[%emt 0:01:07]} Ree7 {[%emt 0:00:51]} 27. Kd4 {[%emt 0:00:28]} Rc5 {[%emt 0:02:03]} 28. g4 {[%emt 0:02:10]} fxg4 {[%emt 0:00:38]} 29. Bxg4 {[%emt 0:00:05]} Rcc7 {[%emt 0:04:38]} 30. Be6 {[%emt 0:01:45]} Kg7 {[%emt 0:00:28]} 31. Rce1 {[%emt 0:01:07]} b5 {[%emt 0:02:15]} 32. Rc1 {[%emt 0:00:28]} Rc5 {[%emt 0:01:02]} 33. Rec3 {[%emt 0:00:46]} b4 {[%emt 0:00:52]} 34. Re3 {[%emt 0:00:37]} Rec7 {[%emt 0:00:11]} 35. Bg4 {[%emt 0:00:30]} Bb5 {[%emt 0:03:07]} 36. Be2 {[%emt 0:00:17]} Rf7 {[%emt 0:01:17]} 37. f3 {[%emt 0:00:41]} Bd7 {[%emt 0:00:13]} 38. a3 {[%emt 0:00:52]} Rf4+ {[%emt 0:00:38]} 39. Re4 {[%emt 0:00:11]} Rxe4+ {[%emt 0:03:29]} 40. fxe4 {[%emt 0:00:08]} bxa3 {[%emt 0:00:16]} 41. e5 {[%emt 0:00:11]} Ra5 {[%emt 0:01:31]} 42. exd6 {[%emt 0:00:23]} Bf5 {[%emt 0:00:52]} 43. Bd3 {[%emt 0:01:11]} Kf7 {[%emt 0:00:45]} 44. Bxf5 {[%emt 0:01:00]} gxf5 {[%emt 0:00:01]} 45. c5 {[%emt 0:00:12]} a2 {[%emt 0:00:21]} 46. Ra1 {[%emt 0:00:56]} Ke8 {[%emt 0:00:17]} 47. c6 {[%emt 0:00:06]} Kd8 {[%emt 0:00:02]} 48. Ke5 {[%emt 0:00:11]} Ra3 {[%emt 0:00:24]} 49. Ke6 {[%emt 0:00:15]} f4 {[%emt 0:01:18]} 50. c7+ {[%emt 0:00:28]} Kc8 {[%emt 0:00:01]} 51. d7+ {[%emt 0:00:09]} Kxc7 {[%emt 0:00:02]} 52. Rc1+ {[%emt 0:00:04]} 1-0

[Event "Chinese Team-ch Men 2025"]
[Site "Zhang Jiakou Hebei"]
[Date "2025.05.01"]
[Round "7.21"]
[White "Xu, Minghui"]
[Black "Cao, Qingfeng"]
[Result "1/2-1/2"]
[Annotator "ChessBase"]
[ECO "B11"]
[WhiteElo "2459"]
[BlackElo "2443"]
[PlyCount "65"]
[EventDate "2025.04.26"]
[EventType "team-tourn"]
[EventCountry "CHN"]
[SourceTitle "playchess.com"]
[Source "ChessBase"]
[SourceQuality "1"]
[TimeControl "5400+30"]

1. e4 {[%emt 0:00:33]} c6 {[%emt 0:00:13]} 2. Nf3 {[%emt 0:00:30]} d5 {[%emt 0:00:09]} 3. Nc3 {[%emt 0:00:05]} Bg4 {[%emt 0:00:39]} 4. h3 {[%emt 0:01:19]} Bxf3 {[%emt 0:00:10]} 5. Qxf3 {[%emt 0:00:04]} e6 {[%emt 0:00:13]} 6. Be2 {[%emt 0:00:23]} Bc5 {[%emt 0:02:28]} 7. Qg3 {[%emt 0:01:31]} Bd4 {[%emt 0:03:34]} 8. d3 {[%emt 0:01:03]} Nd7 {[%emt 0:01:44]} 9. Bd1 {[%emt 0:00:24]} Ne7 {[%emt 0:00:34]} 10. Ne2 {[%emt 0:00:50]} Bb6 {[%emt 0:00:33]} 11. O-O {[%emt 0:04:21]} O-O {[%emt 0:00:19]} 12. c3 {[%emt 0:00:39]} Bc7 {[%emt 0:09:19]} 13. f4 {[%emt 0:07:05]} f5 {[%emt 0:02:19]} 14. Nd4 {[%emt 0:09:32]} Bb6 {[%emt 0:05:47]} 15. Be3 {[%emt 0:02:05]} fxe4 {[%emt 0:26:17]} 16. dxe4 {[%emt 0:07:10]} dxe4 {[%emt 0:03:50]} 17. Bg4 {[%emt 0:05:31]} Nf6 {[%emt 0:04:36]} 18. Bxe6+ {[%emt 0:36:25]} Kh8 {[%emt 0:00:13]} 19. f5 {[%emt 0:08:49]} Nfd5 {[%emt 0:17:29]} 20. Rae1 {[%emt 0:03:19]} Nxe3 {[%emt 0:07:29]} 21. Qxe3 {[%emt 0:01:32]} c5 {[%emt 0:03:26]} 22. Nc2 {[%emt 0:00:12]} c4 {[%emt 0:03:39]} 23. Nd4 {[%emt 0:00:06]} Qd6 {[%emt 0:00:13]} 24. Qxe4 {[%emt 0:00:47]} Nc6 {[%emt 0:00:31]} 25. Kh1 {[%emt 0:02:53]} Nxd4 {[%emt 0:01:07]} 26. cxd4 {[%emt 0:00:06]} Rae8 {[%emt 0:00:50]} 27. Qe5 {[%emt 0:03:03]} Qd8 {[%emt 0:01:26]} 28. Qd5 {[%emt 0:00:29]} Qf6 {[%emt 0:02:12]} 29. Qxc4 {[%emt 0:01:19]} Bxd4 {[%emt 0:00:14]} 30. b4 {[%emt 0:00:29]} b6 {[%emt 0:00:56]} 31. Re4 {[%emt 0:00:39]} Be5 {[%emt 0:00:15]} 32. Rd1 {[%emt 0:01:24]} Bb8 {[%emt 0:00:29]} 33. Rf1 {[%emt 0:00:41]} 1/2-1/2

[Event "Chinese Team-ch Men 2025"]
[Site "Zhang Jiakou Hebei"]
[Date "2025.05.01"]
[Round "7.22"]
[White "Dong, Hongfu"]
[Black "Chen, Yuan"]
[Result "1/2-1/2"]
[Annotator "ChessBase"]
[ECO "B45"]
[WhiteElo "2238"]
[BlackElo "2286"]
[PlyCount "104"]
[EventDate "2025.04.26"]
[EventType "team-tourn"]
[EventCountry "CHN"]
[SourceTitle "playchess.com"]
[Source "ChessBase"]
[SourceQuality "1"]
[TimeControl "5400+30"]

1. e4 {[%emt 0:00:24]} c5 {[%emt 0:00:20]} 2. Nf3 {[%emt 0:00:17]} e6 {[%emt 0:00:07]} 3. d4 {[%emt 0:00:39]} cxd4 {[%emt 0:00:09]} 4. Nxd4 {[%emt 0:00:04]} Nc6 {[%emt 0:00:33]} 5. Nc3 {[%emt 0:00:10]} Bc5 {[%emt 0:00:48]} 6. Nb3 {[%emt 0:12:40]} Bb4 {[%emt 0:00:09]} 7. Bd3 {[%emt 0:00:19]} Nge7 {[%emt 0:00:37]} 8. O-O {[%emt 0:00:36]} O-O {[%emt 0:00:15]} 9. Bd2 {[%emt 0:00:35]} d5 {[%emt 0:15:43]} 10. exd5 {[%emt 0:05:09]} Nxd5 {[%emt 0:06:24]} 11. Qh5 {[%emt 0:07:26]} g6 {[%emt 0:02:50]} 12. Qe2 {[%emt 0:01:10]} Nxc3 {[%emt 0:00:58]} 13. bxc3 {[%emt 0:00:44]} Bd6 {[%emt 0:00:45]} 14. Rad1 {[%emt 0:00:39]} Qc7 {[%emt 0:07:06]} 15. h4 {[%emt 0:04:35]} Bh2+ {[%emt 0:05:32]} 16. Kh1 {[%emt 0:00:07]} Be5 {[%emt 0:00:05]} 17. Bh6 {[%emt 0:13:50]} Re8 {[%emt 0:02:49]} 18. Nd4 {[%emt 0:01:39]} Nxd4 {[%emt 0:12:20]} 19. cxd4 {[%emt 0:00:07]} Bf4 {[%emt 0:01:59]} 20. Bg5 {[%emt 0:04:47]} Bxg5 {[%emt 0:05:51]} 21. hxg5 {[%emt 0:00:07]} Bd7 {[%emt 0:07:20]} 22. f4 {[%emt 0:09:41]} Bc6 {[%emt 0:00:38]} 23. Qe5 {[%emt 0:01:44]} Rac8 {[%emt 0:04:16]} 24. c4 {[%emt 0:16:41]} Red8 {[%emt 0:01:11]} 25. Bc2 {[%emt 0:00:53]} Qxe5 {[%emt 0:07:03]} 26. dxe5 {[%emt 0:02:32]} Kf8 {[%emt 0:03:37]} 27. Kg1 {[%emt 0:02:51]} Ke7 {[%emt 0:00:13]} 28. Rxd8 {[%emt 0:06:59]} Rxd8 {[%emt 0:02:53]} 29. Rd1 {[%emt 0:00:06]} Rxd1+ {[%emt 0:03:19]} 30. Bxd1 {[%emt 0:00:04]} Kd7 {[%emt 0:00:05]} 31. Kf2 {[%emt 0:00:20]} Kc7 {[%emt 0:00:03]} 32. Ke3 {[%emt 0:02:42]} Bxg2 {[%emt 0:00:36]} 33. Kd4 {[%emt 0:00:05]} Kb6 {[%emt 0:03:26]} 34. a3 {[%emt 0:00:20]} Bc6 {[%emt 0:00:11]} 35. Bb3 {[%emt 0:00:48]} Kc7 {[%emt 0:00:45]} 36. Bc2 {[%emt 0:00:37]} b6 {[%emt 0:02:08]} 37. Kc3 {[%emt 0:01:12]} Kd8 {[%emt 0:01:00]} 38. c5 {[%emt 0:01:11]} Kc7 {[%emt 0:00:46]} 39. cxb6+ {[%emt 0:00:38]} Kxb6 {[%emt 0:00:06]} 40. Kb4 {[%emt 0:00:31]} a5+ {[%emt 0:03:23]} 41. Kc4 {[%emt 0:00:12]} Bd5+ {[%emt 0:00:04]} 42. Kd4 {[%emt 0:00:59]} Bc6 {[%emt 0:00:32]} 43. Kc4 {[%emt 0:00:05]} Bb5+ {[%emt 0:00:49]} 44. Kd4 {[%emt 0:00:06]} Bd7 {[%emt 0:00:57]} 45. Bd1 {[%emt 0:00:14]} Be8 {[%emt 0:01:20]} 46. Bc2 {[%emt 0:00:07]} Kb5 {[%emt 0:00:11]} 47. Bd1 {[%emt 0:00:11]} Kb6 {[%emt 0:00:47]} 48. Bc2 {[%emt 0:00:04]} Bc6 {[%emt 0:00:13]} 49. Bd1 {[%emt 0:00:09]} Be8 {[%emt 0:00:08]} 50. Bc2 {[%emt 0:00:04]} Bc6 {[%emt 0:00:53]} 51. Bd1 {[%emt 0:00:05]} Be8 {[%emt 0:00:51]} 52. Bc2 {[%emt 0:00:09]} Bc6 {[%emt 0:01:02]} 1/2-1/2